Cogmind - Beta 14 @@@ ROGUE MODE // 2024.10.19 @ 10:13:02 Player: Mercey Result: Destroyed by Autobeam Turret with Autobeam Performance ------------- Evolutions (0) 0 Regions Visited (3) 600 Robots Destroyed (30) 150 Value Destroyed (518) 518 Prototype IDs (0) 0 Alien Tech Used (0) 0 Bonus (0) 0 TOTAL SCORE: 1268 Bonus ------- None Cogmind --------- Core Integrity 0/250 Matter 290/300 Energy 94/100 System Corruption 5% Temperature Cool (30) Movement Core (1400) Ox27 Location -10/Subcaves Parts ------- > --- POWER (1) -------- (None) > --- PROPULSION (2) --- (None) > --- UTILITY (2) ------ Huge Storage Unit Signal Interpreter > --- WEAPON (2) ------- Grenade Launcher > --- INVENTORY (25) --- Ion Engine Light Nuclear Core Light Treads Flexi-carbon Leg Wheel Compact Wheel Improved Heat Sink Small Matter Pod (50) High-capacity Matter Pod (86) Terrain Scanner Improved Terrain Scanner ECM Suite ECM Suite Light Assault Rifle Light Assault Rifle Light Assault Rifle Light Assault Rifle Subdweller Machine Gun Light Cannon Grenade Launcher Peak State ------------ > --- POWER ------------ Light Ion Engine > --- PROPULSION ------- Light Treads Wheel > --- UTILITY ---------- Huge Storage Unit Signal Interpreter > --- WEAPON ----------- Slug Cannon Bore Cannon > --- INVENTORY -------- Ion Engine Light Nuclear Core Flexi-carbon Leg Wheel Wheel Compact Wheel Improved Heat Sink Small Matter Pod High-capacity Matter Pod Terrain Scanner Improved Terrain Scanner ECM Suite ECM Suite Light Assault Rifle Light Assault Rifle Light Assault Rifle Light Assault Rifle Light Cannon Grenade Launcher Grenade Launcher [Rating: 17] Favorites ----------- Power Light Ion Engine Engine Light Ion Engine Propulsion Light Treads Treads Light Treads Wheel Wheel Utility Huge Storage Unit Storage Huge Storage Unit Processor Signal Interpreter Weapon Bore Cannon Ballistic Gun Assault Rifle Ballistic Cannon Bore Cannon Launcher Grenade Launcher Build | -11 -10 -10 -10 ------- Run | Yrd Mat Min Sub Slots Evolved . | . . . . Power . | . . . . Propulsion . | . . . . Utility . | . . . . Weapon . | . . . . Parts Attached 27 | 7 5 12 3 Power 3 | 1 1 1 . Engine 3 | 1 1 1 . Core . | . . . . Reactor . | . . . . Propulsion 6 | 3 . 1 2 Treads 3 | 2 . 1 . Leg . | . . . . Wheel 3 | 1 . . 2 Hover . | . . . . Flight . | . . . . Utility 3 | 1 2 . . Device . | . . . . Storage 2 | 1 1 . . Processor 1 | . 1 . . Hackware . | . . . . Protection . | . . . . Artifact . | . . . . Weapon 15 | 2 2 10 1 Energy Gun . | . . . . Energy Cannon . | . . . . Ballistic Gun 5 | 2 1 2 . Ballistic Cannon 6 | . 1 5 . Launcher 4 | . . 3 1 Special Weapon . | . . . . Impact Weapon . | . . . . Slashing Weapon . | . . . . Piercing Weapon . | . . . . Special Melee Weapon . | . . . . Unidentified Prototypes . | . . . . Parts Lost 9 | . 3 2 4 Power 2 | . 1 . 1 Propulsion 3 | . 1 1 1 Utility . | . . . . Weapon 4 | . 1 1 2 Highest Loss Streak 4 | . 2 1 4 To Critical Strikes . | . . . . Average Slot Usage (%) 93 | . 89 94 98 Engine 13 | . 13 14 13 Treads 22 | . 24 22 . Wheel 1 | . . . 27 Storage 14 | . 14 14 14 Processor 12 | . 7 14 14 Ballistic Gun 6 | . 19 2 . Ballistic Cannon 20 | . 8 24 27 Peak Build Rating 17 | 6 8 16 17 Average Rating 13 | 4 7 15 16 On Entrance 7 | . 6 7 16 Naked Turns . | . . . . Heaviest Build 99 | 11 93 99 99 Greatest Support 40 | 40 40 40 20 Greatest Overweight (x) 9 | 1 4 4 9 Average Overweight (x) 2 | . 1 2 4 Largest Inventory Capacity 25 | 8 25 25 25 Average Capacity 24 | 7 22 25 25 Most Carried 21 | 4 13 21 21 Average Carried 16 | 3 10 18 20 Final Capacity 25 | 8 25 25 25 Final Carried 21 | 4 12 21 20 Class Distribution -------------------- 94% | Mutant 5% | Scavenger-Mutant Dominant Class ---------------- Mutant | -10/Materials Mutant | -10/Mines Scavenger-Mutant | -10/Subcaves Resources | -11 -10 -10 -10 ----------- Run | Yrd Mat Min Sub Matter Collected 1254 | 188 280 637 149 Remotely . | . . . . Salvage Created 573 | . 288 222 63 Parts 51 | . 25 24 2 Haulers Intercepted . | . . . . Recyclers Shooed 2 | . . 2 . Parts Field Recycled . | . . . . Retrieved Matter . | . . . . Parts Self-Destructed 2 | . . . 2 Prevented . | . . . . Kills | -11 -10 -10 -10 ------- Run | Yrd Mat Min Sub Combat Hostiles Destroyed 23 | . 10 11 2 Guns 8 | . 6 2 . Cannons 11 | . 4 7 . AOE 4 | . . 2 2 Classes Destroyed 9 | . 4 4 1 Worker 4 | . 1 3 . Builder 1 | . . 1 . Tunneler 1 | . . 1 . Recycler 1 | . . 1 . Watcher 2 | . 2 . . Swarmer 13 | . 5 6 2 Grunt 8 | . 5 3 . Cobbler 1 | . . . 1 Assembled 2 | . . 2 . Best Kill Streak 5 | . 4 5 2 Combat Bots Only 3 | . 2 3 2 Max Kills in Single Turn 2 | . 1 2 2 Gunslinging . | . . . . Exploded 2 | . . 1 2 Melee . | . . . . Uniques/NPCs Destroyed . | . . . . Combat | -11 -10 -10 -10 -------- Run | Yrd Mat Min Sub Hostile Shots Fired 163 | . 83 50 30 Missed 45 | . 20 13 12 Damage Taken 1496 | . 623 742 131 Core 252 | . 121 106 25 Absorbed by Shields . | . . . . Core Remaining (%) 100 | 100 . . . Volleys Fired 84 | . 38 44 2 Largest 2 | . 2 2 2 Hottest 105 | . 55 105 105 Shots Fired 152 | . 75 74 3 Gun 67 | . 49 18 . Cannon 73 | . 26 45 2 Launcher 12 | . . 11 1 Special . | . . . . Kinetic 140 | . 75 63 2 Thermal . | . . . . Explosive 12 | . . 11 1 Electromagnetic . | . . . . Robot Hit Streak 7 | . 7 7 . Robot Miss Streak 9 | . 3 9 . Penetration Max . | . . . . Secondary Targets 1 | . 1 . . Max Gunslinging Chain 1 | . 1 . . Shots Hit Robots 80 | . 51 29 . Core Hits 42 | . 20 19 3 Critical Kills 6 | . . 5 1 Critical Parts Destroyed 3 | . . 3 . Critical Strikes 10 | . 1 8 1 Destroy 9 | . . 8 1 Blast 1 | . 1 . . Melee Attacks . | . . . . Impact . | . . . . Slashing . | . . . . Piercing . | . . . . Sneak Attacks . | . . . . Combat Hostiles . | . . . . Follow-up Attacks . | . . . . Damage Inflicted 1691 | . 717 852 122 Guns 564 | . 444 120 . Cannons 783 | . 263 461 59 Explosions 329 | . . 266 63 Melee . | . . . . Ramming 15 | . 10 5 . Kinetic 1347 | . 707 581 59 Thermal 176 | . . 176 . Explosive 153 | . . 90 63 Electromagnetic . | . . . . Impact . | . . . . Slashing . | . . . . Piercing . | . . . . Highest Corruption 5 | . . 5 5 Average Corruption 5 | . . 5 5 Corruption Purged . | . . . . Corruption Blocked . | . . . . Effects 37 | . . 30 7 Message Errors 10 | . . 9 1 Matter Fused 5 | . . 4 1 Heat Flow Errors 8 | . . 6 2 Energy Discharges 2 | . . 2 . Parts Rejected 1 | . . . 1 Parts Fused 1 | . . 1 . Data Loss (minor) 5 | . . 3 2 Data Loss (major) 2 | . . 2 . Misfires 3 | . . 3 . Overload Shots . | . . . . Overflow Damage 29 | . . 29 . Projectiles 22 | . . 22 . Explosions 7 | . . 7 . Melee . | . . . . Knockbacks 12 | . 3 8 1 Impact . | . . . . Kinetic 11 | . 3 7 1 Secondary 1 | . . 1 . Self-Inflicted Damage 3 | . . 3 . Shots 1 | . . 1 . Rammed 3 | . 1 2 . Targets Rammed 3 | . 1 2 . Kicked . | . . . . Crushed . | . . . . Highest Temperature 644 | . 23 644 151 Average Temperature 142 | . 9 164 73 Received Heat Transfer 400 | . 135 187 78 Effects 14 | . . 14 . Shutdowns 2 | . . 2 . Energy Bleed 1 | . . 1 . Interference 4 | . . 4 . Matter Decay 1 | . . 1 . Damage (minor) 1 | . . 1 . Damage (major) 4 | . . 4 . Damage (core) 1 | . . 1 . Siege Activations . | . . . . Robots Corrupted . | . . . . Combat Hostiles . | . . . . Parts Fried . | . . . . Impact Corruptions . | . . . . Robots Melted . | . . . . Combat Hostiles . | . . . . Parts Melted 1 | . . 1 . Heat Transferred 200 | . . 200 . Parts Sabotaged . | . . . . Parts Stolen . | . . . . Parts Stripped . | . . . . Power Chain Reactions . | . . . . Alert | -11 -10 -10 -10 ------- Run | Yrd Mat Min Sub Peak Influence 202 | . 185 202 . Initial 39 | . . 39 . Average 79 | . 83 79 . Maximum Alert Level 1 | . . 1 . Low Security (%) 99 | 100 100 98 . Level 1 . | . . 1 . Level 2 . | . . . . Level 3 . | . . . . Level 4 . | . . . . Level 5 . | . . . . High Security . | . . . . Max Security . | . . . . Squads Dispatched 1 | . 1 . . Investigation 1 | . 1 . . Extermination . | . . . . Reinforcement . | . . . . Assault . | . . . . Garrison . | . . . . Intercept . | . . . . Searches Triggered . | . . . . Construction Impeded . | . . . . Haulers Reinforced . | . . . . Active Scanning Responses . | . . . . Cargo Convoy Interrupts . | . . . . Stealth | -11 -10 -10 -10 --------- Run | Yrd Mat Min Sub Distress Signals 1 | . 1 . . Communications Jammed . | . . . . Distress Signals . | . . . . Times Spotted 39 | . 18 15 6 Peak Tracking Total 6 | . 5 5 6 Tactical Retreats 7 | . 3 4 . Traps | -11 -10 -10 -10 ------- Run | Yrd Mat Min Sub Traps Triggered 1 | . 1 . . Indirectly . | . . . . Trap Hack Attempts . | . . . . Triggered . | . . . . Disarmed . | . . . . Reprogrammed . | . . . . Reused . | . . . . Traps Extracted . | . . . . Installed . | . . . . Triggered . | . . . . Machines | -11 -10 -10 -10 ---------- Run | Yrd Mat Min Sub Machines Disabled 1 | . . 1 . Max in Single Turn 1 | . . 1 . Machines Repaired . | . . . . Machines Dismantled . | . . . . Machines Sabotaged . | . . . . Overloaded Fab Kills . | . . . . Hacking | -11 -10 -10 -10 --------- Run | Yrd Mat Min Sub Machines Accessed 2 | . 2 . . Terminals 2 | . 2 . . Fabricators . | . . . . Repair Stations . | . . . . Recycling Units . | . . . . Scanalyzers . | . . . . Garrison Access . | . . . . Total Hacks 3 | . 3 . . Successful . | . . . . Failed 3 | . 3 . . Catastrophic . | . . . . Database Lockouts . | . . . . Manual 1 | . 1 . . Terminals 3 | . 3 . . Fabricators . | . . . . Repair Stations . | . . . . Recycling Units . | . . . . Scanalyzers . | . . . . Garrison Access . | . . . . Terminal Hacks . | . . . . Fabricator Hacks . | . . . . Repair Station Hacks . | . . . . Recycling Unit Hacks . | . . . . Scanalyzer . | . . . . Garrison Access Hacks . | . . . . Unauthorized Hacks . | . . . . Terminals . | . . . . Fabricators . | . . . . Repair Stations . | . . . . Recycling Units . | . . . . Scanalyzers . | . . . . Garrison Access . | . . . . Data Cores Recovered . | . . . . Used . | . . . . Hacking Detections 1 | . 1 . . Full Trace Events 1 | . 1 . . Feedback Events . | . . . . Feedback Blocked . | . . . . Robot Schematics Acquired . | . . . . Robots Built . | . . . . Authchips . | . . . . Time . | . . . . Total Robot Build Rating . | . . . . Part Schematics Acquired . | . . . . Parts Built . | . . . . Authchips . | . . . . Time . | . . . . Total Part Build Rating . | . . . . Parts Repaired . | . . . . Time . | . . . . Parts Recycled . | . . . . Recycled Matter . | . . . . Retrieved Matter . | . . . . Retrieved Components . | . . . . Parts Scanalyzed . | . . . . Part Schematics Acquired . | . . . . Parts Damaged . | . . . . Bothacking | -11 -10 -10 -10 ------------ Run | Yrd Mat Min Sub Used RIF Installer . | . . . . Robots Hacked . | . . . . Non-combat . | . . . . Combat . | . . . . Robot Hacks Applied . | . . . . Relay Couplers Released . | . . . . Fabnet Peak Effective % . | . . . . Robots Rewired . | . . . . Allies Hacked . | . . . . Hacks Repelled . | . . . . Allies | -11 -10 -10 -10 -------- Run | Yrd Mat Min Sub Total Allies . | . . . . Largest Group . | . . . . Highest-Rated Group . | . . . . Highest-Rated Ally . | . . . . Total Orders . | . . . . Ally Attacks . | . . . . Total Damage . | . . . . Kills . | . . . . Allies Corrupted . | . . . . Allies Melted . | . . . . Intel | -11 -10 -10 -10 ------- Run | Yrd Mat Min Sub Robot Analysis Total . | . . . . Derelict Logs Recovered 2 | . . 1 1 Drone Launches . | . . . . Drone Recoveries . | . . . . Exploration | -11 -10 -10 -10 ------------- Run | Yrd Mat Min Sub Turns Passed 4642 | 49 1176 3183 234 Spaces Moved 1341 | 29 323 828 161 Core 1 | 1 . . . Treads 1167 | 16 323 828 . Legs . | . . . . Wheels 173 | 12 . . 161 Hover . | . . . . Flight . | . . . . Fastest Speed 50 | 50 160 320 140 Average Speed 321 | 123 315 365 140 Slowest Speed 480 | 160 480 480 215 Overloaded Moves . | . . . . Propulsion Burnouts . | . . . . Robots Hopped . | . . . . Cave-ins Triggered 1 | . . 1 . Exploration Rate (%) 42 | 4 50 99 18 Regions Visited 3 Branch Regions 2 Pre-discovered Areas 1 | . . . 1 Known Exits Taken 2 | . 1 1 . Unknown Exits Taken 1 | 1 . . . Scrap Searched 1 | . . 1 . Spaces Dug 41 | . . 41 . Terrain Destroyed 124 | . . 117 7 Melee . | . . . . Projectile 23 | . . 23 . AOE 101 | . . 94 7 Terrain Rammed . | . . . . Walls Destroyed . | . . . . Machines Disabled . | . . . . Actions | -11 -10 -10 -10 --------- Run | Yrd Mat Min Sub Total 1526 | 39 408 912 167 Wait 47 | . 30 17 . Move 1338 | 28 322 827 161 Hop . | . . . . Pick Up 24 | 3 10 10 1 Fast Attach 9 | 7 2 . . Attach 7 | . 3 2 2 Detach 2 | 1 1 . . Swap 11 | . . 10 1 Drop 1 | . 1 . . Fire 84 | . 38 44 2 Melee . | . . . . Ram . | . . . . Kick . | . . . . Crush 3 | . 1 2 . Escape Stasis . | . . . . Rewire . | . . . . Trap . | . . . . Miscellaneous . | . . . . Route ------- -11/Scrapyard -10/Materials (discovered 2 exits: *Mat / *Min) -10/Mines (discovered 3 exits: *Mat x2 / *Sub) -10/Subcaves History --------- Turn | Location | Event 17 | -11/Scrapyard | Discovered new exit (range 15) 50 | -11/Scrapyard | Entered Materials 305 | -10/Materials | Build established: Mutant 417 | -10/Materials | Discovered new exit (range 9) 1000 | -10/Materials | Discovered new exit (range 16) 1221 | -10/Materials | Identified exit to Mines 1226 | -10/Materials | Entered Mines 1227 | -10/Mines | Assembled infested the area 1228 | -10/Mines | Core integrity fell below 50% 1232 | -10/Mines | Assisted by a Guerilla fighting off Assembled 1420 | -10/Mines | Discovered new exit (range 14) 1506 | -10/Mines | A weapon hastily lodged in a ceiling crevice suddenly fell to the ground 2163 | -10/Mines | Learned Materials stockpile data 2243 | -10/Mines | Discovered new exit (range 5) 3144 | -10/Mines | Discovered new exit (range 7) 3257 | -10/Mines | Crushed by falling debris 3272 | -10/Mines | Core integrity fell below 20% 3487 | -10/Mines | Identified exit to Materials 4404 | -10/Mines | Identified exit to Subcaves 4409 | -10/Mines | Entered Subcaves 4412 | -10/Subcaves | Learned Materials emergency access door positions 4429 | -10/Subcaves | Learned location of Zion (-6) 4429 | -10/Subcaves | Met a Zionite searching for "candidates" 4643 | -10/Subcaves | Destroyed by Autobeam Turret with Autobeam Last Messages --------------- Acquired 60 matter. Acquired 3 matter. System corrupted: Component data lost. System corrupted: Heat flow error (+130). System corrupted: Matter fused (-6). Acquired 13 matter. Acquired 5 matter. Acquired 7 matter. Acquired 5 matter. Acquired 14 matter. Acquired 6 matter. D1PCW#U1,OR79YWY%PKFPVKOS:I:5 System corrupted: Component data lost. Subatomizers dissect the Wheel. Slug Cannon destroyed. Lgt. Ion Engine destroyed. S-10 Pest destroyed. System corrupted: Wheel rejected. Bore Cannon destroyed. Wheel destroyed. Map ----- +----------------------------------------------------+ | ?????????????????????????????????????????????????? | | ?????????????????????????????????????????????????? | | ?????????????????????????????????????????????????? | | ?????????????????????????????????????????????????? | | ?????????????????????????????????????????????????? | | ?????????????????????????????????????????????????? | | ?????????????????????????????????????????????????? | | ?????????????????????????????????????????????????? | | ?????????????????????????????????????????????????? | | ?????????????????????????????????????????????????? | | ???????????????????????t t ?????????????????????? | | ?????????????????????? ????????????????????? | | ?????????????????????? ????????????????????? | | ?????????????????????? "????????????????????? | | ????????????????####??#% % #????????????????????? | | ???????????????## #?## = #???##???????????????? | | ??????????????## #?? [ #?? #???????????????? | | ?????????????## #?# #?# #???????????????? | | ????????????## #?? ## #???????????????? | | ?###???###### #? ##??????????????? | | ?# ##### # ## "#??????????????? | | ## ""# #????????????? | | # ## #???# #?????????????? | | ######### ##??## """?????????????? | | ####???????# #?### """ ???????????? | | #?????????# ### @= "= #?????????????? | | ##????????# ### #### % #?????????????? | | ##??????# #?## ##??????????????????????? | | ##???? #??# #???????????????????????? | | ##?# #??## ## #???????????????????????? | | ## #?########???#######???????????????????????? | | ### #???????????????????????????????????? ?????? | | ?## #???????????????????????????????????? ???? | | ## #???????????????????????????????????? ???? | | # ##???????????????????????????????????? #???? | | ##????????????????????????????????????? ???? | | ###?????????????????????????????????????# ????? | | ###????????????????????????????????????# ????? | | #???????????????????????????????????? " ????? | | #???????????????????????????????????? " #????? | | #???##??????????????????????????????? #????? | | ### #??????????????????????????????? ?????? | | #??????????????????????????????? ##????? | | % #????????????????????????????#### #????? | | ##?????????????????????###???## # #????? | | ###???????????????????#### #??## ##????? | | #????????????????????## #??# ##???? | | #????????????????????# #### ## #???? | | ##????????????????????# # # #???? | | ###????????????????????## ###???? | +----------------------------------------------------+ Best States ------------- Heat Dissipation 25 Energy Generation 10 Energy Capacity 250 Matter Stores 300 Matter Capacity 300 Sight Range 16 Terrain Scan Density 10 Evasion (%) 44 Recoil Reduction 2 Item Schematics ----------------- None Robot Schematics ------------------ None Fabricated ------------ Nothing Alien Tech Used ----------------- None Achievements -------------- None Challenges ------------ None Game ------ Seed TransportHardcellDatajack Manual? 0 Play Time 00:17:41 Cumulative 13.9 hours Start 2024.10.19 @ 09:56:17 End 2024.10.19 @ 10:13:02 Sessions 1 Manual Loads 0 Difficulty Rogue Special Mode None Game No. 24 Rogue 24 Adventurer 0 Explorer 0 Win Type - Total 0 Types 0/0/0/0/0/0/0/0/0 Lore% 5 Gallery% 19 Achievement% 18 Wizard Run 0 Options --------- Layout 1 ASCII 0 Keyboard 0 Movement Mouse Keybinds 0 Fullscreen 1 Font 48/Smallcaps Map View 50x35 Zoom Use 0% Tactical HUD 0 Map Filters NONE Filters NONE Steam 1 RUN: 4f63db4b-4dd6-4483-9e17-4bc422cb6f3b